bitfinex/quotes_SOLUSD_20250907
["timestamp","ask_amount","ask_price","bid_price","bid_amount"]
[1757255088852,0.00187541,203.64,203.63,69.48086775]
[1757255097039,0.00187541,203.64,203.63,69.51086775]
[1757255097240,0.0336061,203.65,203.63,69.49086775]
[1757255097443,0.0336061,203.65,203.64,0.71]
[1757255098267,0.0336061,203.65,203.63,68.78086775]
[1757255098436,0.0336061,203.65,203.63,69.49086775]
[1757255100961,0.0336061,203.65,203.64,1.96439533]
[1757255101348,0.0336061,203.65,203.64,6.87502192]
[1757255102459,0.0336061,203.65,203.64,87.87608457]
[1757255102762,0.06,203.67,203.66,26.0]
[1757255102952,0.06,203.67,203.66,63.84]
[1757255103262,0.06,203.67,203.66,64.55]
[1757255103435,0.06,203.67,203.66,71.42425032]
[1757255105859,0.06,203.67,203.66,32.87425032]
[1757255106039,0.06,203.67,203.66,70.71425032]
[1757255107047,0.72,203.67,203.66,32.87425032]
[1757255107255,0.36711715,203.67,203.66,70.71425032]
[1757255107467,0.36711715,203.67,203.66,1.96410597]
[1757255107667,0.36711715,203.67,203.66,39.80410597]
[1757255108169,0.36711715,203.67,203.66,37.84]
[1757255108754,0.06,203.68,203.66,42.75014435]
[1757255108960,0.06,203.68,203.67,0.68]
[1757255109351,0.06,203.68,203.67,1.96429887]
[1757255109856,0.06,203.68,203.67,6.87420214]
[1757255111872,0.06,203.68,203.67,7.55420214]
[1757255112161,0.06,203.68,203.67,6.87420214]
[1757255112347,0.06,203.68,203.67,7.55420214]
[1757255112744,0.06,203.68,203.67,6.87420214]
[1757255112961,0.06,203.68,203.67,7.55420214]
[1757255113547,0.06,203.68,203.67,6.87420214]
[1757255115453,0.06,203.68,203.67,7.55420214]
[1757255117158,0.03049138,203.68,203.67,7.55420214]
[1757255118051,0.03049138,203.68,203.67,6.87420214]
[1757255119764,0.69049138,203.68,203.67,6.87420214]
[1757255120275,0.03049138,203.68,203.67,6.87420214]
[1757255121979,0.03049138,203.68,203.67,1.96429887]
[1757255122272,0.69049138,203.68,203.67,1.96429887]
[1757255122657,0.03049138,203.68,203.67,1.96429887]
[1757255124282,0.03049138,203.68,203.67,6.87420214]
[1757255125986,0.03049138,203.68,203.67,1.96429887]
[1757255126971,0.03049138,203.68,203.67,6.87420214]
[1757255127283,0.01049138,203.68,203.67,6.87420214]
[1757255127584,0.01049138,203.68,203.67,1.96429887]
[1757255128177,0.67049138,203.68,203.67,39.78429887]
[1757255128561,0.01049138,203.68,203.67,39.78429887]
[1757255129685,0.67049138,203.68,203.67,1.96429887]
[1757255129980,0.67049138,203.68,203.67,37.82]
[1757255135306,0.01049138,203.68,203.67,37.82]
[1757255135899,0.01049138,203.68,203.67,38.54]
[1757255136285,0.01049138,203.68,203.67,37.82]
[1757255139397,0.01049138,203.68,203.67,37.85]
[1757255140199,0.67049138,203.68,203.67,37.85]
[1757255140600,0.01049138,203.68,203.67,37.85]
[1757255147502,0.01049138,203.68,203.67,38.57]
[1757255147690,0.01049138,203.68,203.67,43.47990327]
[1757255150211,0.06,203.7,203.67,43.47990327]
[1757255150396,0.06,203.7,203.68,0.72]
[1757255150596,0.72,203.7,203.69,37.8]
[1757255151293,0.06,203.7,203.69,37.8]
[1757255151702,0.72,203.7,203.69,37.8]
[1757255152305,5.62936164,203.7,203.67,0.03]
[1757255152615,4.96936164,203.7,203.68,37.78]
[1757255152814,0.66,203.69,203.68,37.78]
[1757255153817,5.56942117,203.69,203.68,37.78]
[1757255154321,0.66,203.69,203.68,37.78]
[1757255155703,4.96924979,203.7,203.68,37.78]
[1757255156015,5.62924979,203.7,203.68,37.78]
[1757255157097,0.06,203.69,203.68,37.78]
[1757255159414,0.06,203.69,203.68,38.5]
[1757255166936,0.06,203.69,203.68,43.40966221]
[1757255168405,0.03396652,203.69,203.68,43.40966221]
[1757255168606,0.03396652,203.69,203.68,45.37367173]
[1757255169512,0.03396652,203.69,203.68,45.86463795]
[1757255169712,0.03396652,203.69,203.68,45.37367173]
[1757255170718,0.03396652,203.69,203.68,46.60067004]
[1757255172025,0.03396652,203.69,203.68,45.37367173]
[1757255176720,0.03396652,203.69,203.68,45.40367173]
[1757255178138,0.03396652,203.69,203.68,1.99400952]
[1757255178437,0.03396652,203.69,203.68,37.79]
[1757255178837,0.03396652,203.69,203.68,0.03]
[1757255179039,0.69396652,203.69,203.68,0.03]
[1757255179223,0.69396652,203.69,203.68,37.79]
[1757255182140,0.69396652,203.69,203.68,0.03]
[1757255182346,0.69396652,203.69,203.68,37.79]
[1757255183523,0.03396652,203.69,203.68,37.79]
[1757255184333,0.69396652,203.69,203.68,37.79]
[1757255184850,0.03396652,203.69,203.68,37.79]
[1757255186344,0.69396652,203.69,203.68,37.79]
[1757255187644,0.69396652,203.69,203.68,0.03]
[1757255188029,5.60338769,203.69,203.68,0.03]
[1757255188371,0.69396652,203.69,203.68,0.03]
[1757255188847,5.60338769,203.69,203.68,0.03]
[1757255193747,23.75298404,203.69,203.68,0.03]
[1757255194060,25.71805491,203.69,203.68,0.03]
[1757255195556,21.16405257,203.69,203.68,0.03]
[1757255200664,25.71805491,203.69,203.68,0.03]
[1757255206271,39.59559401,203.66,203.65,0.03]
[1757255206480,42.51317197,203.66,203.65,0.03]
[1757255206776,43.17317197,203.66,203.65,0.03]
[1757255207074,45.13862907,203.66,203.65,0.03]
[1757255207648,50.04877342,203.66,203.65,0.03]
[1757255208249,49.38877342,203.66,203.65,0.03]
[1757255209180,20.47119546,203.66,203.65,0.03]
[1757255209550,20.47119546,203.66,203.65,0.7]
[1757255209975,20.47119546,203.66,203.65,0.03]
[1757255217674,58.23119546,203.66,203.65,0.03]
[1757255220271,61.80877342,203.66,203.65,0.03]
[1757255221786,61.14877342,203.66,203.65,0.03]
[1757255223074,58.23119546,203.66,203.65,0.03]
[1757255225304,20.47119546,203.66,203.65,0.74]
[1757255225581,58.21119546,203.66,203.65,0.74]
[1757255225787,20.47119546,203.66,203.65,0.74]
[1757255225966,18.50573836,203.66,203.65,0.74]
[1757255232283,18.50573836,203.66,203.65,0.03]
[1757255232702,20.47090577,203.66,203.65,0.03]
[1757255233000,24.10848373,203.66,203.65,0.03]
[1757255239003,16.51317197,203.65,203.64,1e-08]
[1757255239183,54.25317197,203.65,203.64,1e-08]
[1757255239382,54.97317197,203.65,203.64,1e-08]
[1757255239704,56.93872564,203.65,203.64,1e-08]
[1757255239905,13.59559401,203.62,203.61,0.03]
[1757255240109,54.25317197,203.62,203.61,0.03]
[1757255240404,54.97317197,203.62,203.61,0.03]
[1757255240588,61.85012436,203.62,203.61,0.03]
[1757255248202,61.13012436,203.62,203.61,0.03]
[1757255252817,61.13012436,203.62,203.61,0.74]
[1757255253418,61.13012436,203.62,203.61,0.03]
[1757255255708,61.13012436,203.62,203.61,0.74]
[1757255256015,61.13012436,203.62,203.61,0.03]
[1757255257013,61.13012436,203.62,203.61,0.74]
[1757255259122,61.13012436,203.62,203.61,0.03]
[1757255262130,61.17012436,203.62,203.61,0.03]
[1757255262314,61.17012436,203.62,203.61,0.74]
[1757255263126,61.17012436,203.62,203.61,0.03]
[1757255263443,23.45012436,203.62,203.61,0.74]
[1757255263625,61.17012436,203.62,203.61,0.03]
[1757255264127,20.5325464,203.62,203.61,0.74]
[1757255264427,18.56670293,203.62,203.61,0.74]
[1757255265317,0.06,203.62,203.61,0.74]
[1757255265521,18.56670293,203.62,203.61,0.74]
[1757255266016,0.06,203.62,203.61,0.74]
[1757255287038,0.06,203.62,203.61,0.03]
[1757255287039,13.65559401,203.62,203.61,0.03]
[1757255287439,15.62114768,203.62,203.61,0.03]
[1757255290168,20.5322566,203.62,203.61,0.03]
[1757255294050,20.5322566,203.62,203.61,0.71]
[1757255294869,18.56670293,203.62,203.61,0.71]
[1757255298759,20.5322566,203.62,203.61,0.71]
[1757255299063,20.5322566,203.62,203.61,0.03]
[1757255299272,21.2022566,203.62,203.61,0.03]
[1757255299575,63.44082295,203.62,203.61,0.03]
[1757255299952,58.8822566,203.62,203.61,0.03]
[1757255300476,63.44082295,203.62,203.61,0.03]
[1757255305776,63.44082295,203.62,203.61,0.03]
[1757255311094,25.76082295,203.62,203.61,0.03]
[1757255311279,63.44082295,203.62,203.61,0.03]
[1757255311665,58.2122566,203.62,203.61,0.03]
[1757255311871,63.44082295,203.62,203.61,0.03]
[1757255312783,62.77082295,203.62,203.61,0.03]
[1757255314698,63.44082295,203.62,203.61,0.03]
[1757255314994,62.77082295,203.62,203.61,0.03]
[1757255318796,20.5322566,203.62,203.61,0.03]
[1757255319100,62.77082295,203.62,203.61,0.74]
[1757255319306,25.09082295,203.62,203.61,0.74]
[1757255319481,62.77082295,203.62,203.61,0.74]
[1757255320701,25.09082295,203.62,203.61,0.74]
[1757255321215,62.77082295,203.62,203.61,0.03]
[1757255321508,25.09082295,203.62,203.61,0.03]
[1757255321681,62.77082295,203.62,203.61,0.03]
[1757255324779,62.77082295,203.62,203.61,0.74]
[1757255324982,62.77082295,203.62,203.61,0.03]
[1757255326202,62.77082295,203.62,203.61,0.74]
[1757255326396,61.13113979,203.62,203.61,0.74]
[1757255326606,23.45113979,203.62,203.61,0.74]
[1757255326786,20.5322566,203.62,203.61,0.74]
[1757255327098,18.56670293,203.62,203.61,0.74]
[1757255328308,20.5322566,203.62,203.61,0.74]
[1757255329122,23.45113979,203.62,203.61,0.74]
[1757255329913,23.45113979,203.62,203.61,0.03]
[1757255330904,23.45113979,203.62,203.61,0.74]
[1757255333821,20.5322566,203.62,203.61,0.74]
[1757255337441,58.2122566,203.62,203.61,0.74]
[1757255339912,58.2122566,203.62,203.61,0.03]
[1757255340116,61.13113979,203.62,203.61,0.03]
[1757255340637,58.2122566,203.62,203.61,0.74]
[1757255341128,58.2122566,203.62,203.61,0.03]
[1757255341330,61.13113979,203.62,203.61,0.03]
[1757255342731,61.85113979,203.62,203.61,0.03]
[1757255342931,61.13113979,203.62,203.61,0.03]
[1757255345935,58.2122566,203.62,203.61,0.03]
[1757255346638,58.2122566,203.62,203.61,0.71]
[1757255347134,58.2122566,203.62,203.61,0.03]
[1757255349935,58.2122566,203.62,203.61,0.71]
[1757255350339,58.1922566,203.62,203.61,0.71]
[1757255356049,58.1922566,203.62,203.61,0.03]
[1757255359749,58.1922566,203.62,203.61,0.71]
[1757255372861,58.1922566,203.62,203.61,0.03]
[1757255379267,61.11113979,203.62,203.61,0.03]
[1757255381853,58.1922566,203.62,203.61,0.03]
[1757255382056,61.11113979,203.62,203.61,0.03]
[1757255386362,62.7523793,203.62,203.61,0.03]
[1757255386569,62.7523793,203.62,203.61,0.74]
[1757255387870,62.7523793,203.62,203.61,0.03]
[1757255388172,58.1922566,203.62,203.61,0.03]
[1757255396575,58.1922566,203.62,203.61,0.74]
[1757255397474,58.1922566,203.62,203.61,0.03]
[1757255398586,58.1922566,203.62,203.61,0.74]
[1757255399480,58.1922566,203.62,203.61,0.03]
[1757255400074,58.1922566,203.62,203.61,0.74]
[1757255400364,58.1922566,203.62,203.61,0.03]
[1757255400679,58.1922566,203.62,203.61,0.74]
[1757255400887,63.4323793,203.62,203.61,0.03]
[1757255401068,62.7523793,203.62,203.61,0.03]
[1757255401271,58.1922566,203.62,203.61,0.03]
[1757255401997,58.1522566,203.62,203.61,0.74]
[1757255404190,44.55666259,203.62,203.61,0.74]
[1757255404590,6.93666259,203.62,203.61,0.74]
[1757255416294,0.06,203.62,203.61,0.74]
[1757255416696,0.06,203.62,203.61,2.73545709]
[1757255422098,0.06,203.62,203.61,7.64680722]
[1757255422719,0.06,203.62,203.61,2.73545709]
[1757255423213,0.06,203.62,203.61,40.33545709]
[1757255423803,0.06,203.62,203.61,2.73545709]
[1757255424204,0.06,203.62,203.61,40.33545709]
[1757255425011,0.06,203.62,203.61,2.73545709]
[1757255425226,0.06,203.62,203.61,40.33545709]
[1757255425410,0.06,203.62,203.61,2.73545709]
[1757255425596,0.06,203.62,203.61,40.33545709]
[1757255425798,0.06,203.62,203.61,2.73545709]
[1757255426013,0.06,203.62,203.61,40.33545709]
[1757255426903,0.06,203.62,203.61,2.73545709]
[1757255427103,0.06,203.62,203.61,40.33545709]
[1757255433616,0.06,203.62,203.61,2.73545709]
[1757255433812,0.06,203.62,203.61,40.29545709]
[1757255434036,0.06,203.62,203.61,39.60545709]
[1757255434213,0.74,203.62,203.61,0.03]
[1757255434612,2.7054571,203.62,203.61,0.03]
[1757255435035,16.30105111,203.62,203.61,0.03]
[1757255435330,20.86117381,203.62,203.61,0.03]
[1757255435944,25.77228273,203.62,203.61,0.03]
[1757255447526,21.21216003,203.62,203.61,0.03]
[1757255447728,20.53216003,203.62,203.61,0.03]
[1757255447936,20.53216003,203.62,203.61,0.68]
[1757255448947,2.0254571,203.62,203.61,0.68]
[1757255449527,2.0254571,203.62,203.61,2.64526396]
[1757255449742,0.06,203.62,203.61,2.64526396]
[1757255456348,0.06,203.65,203.61,7.55661409]
[1757255456551,0.06,203.65,203.62,0.65]
[1757255457062,0.06,203.65,203.63,6.87564905]
[1757255457240,0.06,203.65,203.64,0.65]
[1757255459567,0.06,203.65,203.64,5.56062659]
[1757255460264,0.06,203.65,203.64,7.52531139]
[1757255464245,0.06,203.65,203.64,34.01637404]
[1757255464451,0.06,203.67,203.66,26.0]
[1757255464749,0.06,203.67,203.66,64.70101443]
[1757255465575,0.06,203.67,203.66,69.61115878]
[1757255466154,0.03396652,203.69,203.66,69.61115878]
[1757255466354,0.03396652,203.69,203.67,0.72]
[1757255467053,0.03396652,203.69,203.68,1.96400952]
[1757255467572,0.03396652,203.69,203.68,7.59367173]
[1757255468455,0.03396652,203.69,203.68,8.08463795]
[1757255469062,0.06,203.7,203.68,8.08463795]
[1757255469358,0.06,203.7,203.69,0.72]
[1757255469565,0.2,203.71,203.69,31.62942117]
[1757255469764,0.2,203.71,203.7,38.28]
[1757255470082,0.2,203.71,203.7,47.6847698]
[1757255470461,0.2,203.71,203.7,49.64839367]
[1757255470765,0.2,203.71,203.7,16.99757383]
[1757255470955,0.2,203.71,203.7,54.55757383]
[1757255472684,0.2,203.71,203.7,55.04849184]
[1757255473063,0.06,203.74,203.7,55.04849184]
[1757255473259,0.06,203.74,203.71,5.62893917]
[1757255473558,12.46515954,203.83,203.71,5.62893917]
[1757255473559,0.69,203.82,203.74,26.0]
[1757255473764,0.69,203.82,203.74,63.54]
[1757255473964,0.69,203.82,203.74,64.26]
[1757255474171,0.69,203.82,203.74,68.23575193]
[1757255474375,0.69,203.82,203.74,70.19908665]
[1757255475070,4.90629589,203.82,203.74,32.65908665]
[1757255475279,0.69,203.81,203.74,70.19908665]
[1757255475455,5.59659211,203.81,203.74,75.107303]
[1757255477079,0.69,203.81,203.74,75.107303]
[1757255477283,0.69,203.81,203.74,79.91494999]
[1757255479078,4.90653503,203.81,203.74,79.91494999]
[1757255479277,0.69,203.8,203.74,79.91494999]
[1757255479786,0.69,203.79,203.74,75.00673364]
[1757255480782,0.69,203.79,203.74,42.37494999]
[1757255480970,0.69,203.79,203.74,75.00673364]
[1757255481282,0.69,203.79,203.74,37.46673364]
[1757255481489,0.69,203.76,203.74,1.96333472]
[1757255481791,0.69,203.76,203.74,63.54]
[1757255482475,0.69,203.76,203.72,4.90712255]
[1757255482678,0.69,203.74,203.72,4.90712255]
[1757255482878,4.90712255,203.79,203.73,37.54]
[1757255483084,4.90712255,203.79,203.72,4.90712255]
[1757255483264,4.90712255,203.79,203.73,37.54]
[1757255483462,0.69,203.74,203.72,4.90712255]
[1757255483775,0.69,203.74,203.73,37.54]
[1757255484182,0.69,203.76,203.73,37.54]
[1757255484384,0.75,203.75,203.73,37.54]
[1757255485394,4.96797546,203.75,203.74,0.03]
[1757255485994,5.65797546,203.75,203.74,0.03]
[1757255486881,5.65797546,203.75,203.74,37.57]
[1757255487785,5.65797546,203.75,203.74,0.03]
[1757255489588,8.57569588,203.75,203.74,0.03]
[1757255489805,22.17128989,203.75,203.74,0.03]
[1757255489981,48.17128989,203.75,203.74,0.03]
[1757255490596,62.90570211,203.75,203.74,0.03]
[1757255493874,26.0,203.72,203.69,0.03]
[1757255494080,16.51331443,203.7,203.69,0.03]
[1757255494388,21.42249459,203.7,203.69,0.03]
[1757255494696,22.11249459,203.7,203.69,0.03]
[1757255501091,18.50477417,203.7,203.69,0.03]
[1757255502294,4.90893917,203.71,203.69,0.71]
[1757255502486,4.90893917,203.71,203.7,0.68]
[1757255502692,4.90893917,203.71,203.69,0.03]
[1757255502892,4.90893917,203.71,203.69,0.71]
[1757255503808,4.90869821,203.72,203.69,0.71]
[1757255504992,4.90869821,203.72,203.69,0.03]
[1757255505189,0.65,203.71,203.69,0.03]
[1757255505786,14.24559401,203.7,203.69,0.03]
[1757255506103,17.16331443,203.7,203.69,0.03]
[1757255506409,19.12828877,203.7,203.69,0.03]
[1757255506705,30.79917045,203.7,203.69,0.03]
[1757255507607,19.12828877,203.7,203.69,0.03]
[1757255507984,24.03746893,203.7,203.69,0.03]
[1757255508412,25.67810162,203.7,203.69,0.03]
[1757255513210,63.21810162,203.7,203.69,0.03]
[1757255517720,25.67810162,203.7,203.69,0.03]
[1757255517904,63.21810162,203.7,203.69,0.03]
[1757255520516,20.46974851,203.7,203.69,0.71]
[1757255520824,62.56810162,203.7,203.69,0.71]
[1757255521012,62.56810162,203.7,203.69,0.03]
[1757255522125,63.21810162,203.7,203.69,0.03]
[1757255524122,25.67810162,203.7,203.69,0.03]
[1757255524300,63.21810162,203.7,203.69,0.03]
[1757255527017,67.77645473,203.7,203.69,0.03]
[1757255528533,63.21810162,203.7,203.69,0.03]
[1757255530621,62.56810162,203.7,203.69,0.03]
[1757255532141,63.23810162,203.7,203.69,0.03]
[1757255533138,67.79645473,203.7,203.69,0.03]
[1757255533340,13.59559401,203.66,203.64,0.03]
[1757255533505,55.69394712,203.65,203.64,0.03]
[1757255534007,57.65950079,203.65,203.64,0.73]
[1757255535008,62.56988625,203.65,203.64,0.03]
[1757255536018,63.23988625,203.65,203.64,0.03]
[1757255537542,25.02988625,203.65,203.64,0.03]
[1757255537724,62.56988625,203.65,203.64,0.03]
[1757255538529,25.02988625,203.65,203.64,0.03]
[1757255538707,62.56988625,203.65,203.64,0.03]
[1757255538909,25.02988625,203.65,203.64,0.03]
[1757255539110,62.56988625,203.65,203.64,0.03]
[1757255540234,20.47153314,203.65,203.64,0.03]
[1757255540413,62.56988625,203.65,203.64,0.73]
[1757255541321,25.02988625,203.65,203.64,0.73]
[1757255541640,62.56988625,203.65,203.64,0.03]
[1757255544238,62.56988625,203.65,203.64,0.73]
[1757255544830,62.56988625,203.65,203.64,0.03]
[1757255547053,58.01153314,203.65,203.64,0.03]
[1757255547231,62.56988625,203.65,203.64,0.03]
[1757255548139,58.01153314,203.65,203.64,0.73]
[1757255548321,62.56988625,203.65,203.64,0.73]
[1757255550831,20.47153314,203.65,203.64,0.73]
[1757255551139,60.60433258,203.65,203.64,0.73]
[1757255551343,56.04597947,203.65,203.64,0.73]
[1757255553741,61.27433258,203.65,203.64,0.03]
[1757255555057,60.60433258,203.65,203.64,0.03]
[1757255555238,61.27433258,203.65,203.64,0.03]
[1757255555442,60.60433258,203.65,203.64,0.03]
[1757255556053,61.27433258,203.65,203.64,0.03]
[1757255556286,63.24017605,203.65,203.64,0.03]
[1757255556832,62.57017605,203.65,203.64,0.03]
[1757255557251,194.87017605,203.65,203.64,0.03]
[1757255559673,220.87017605,203.65,203.64,0.03]
[1757255560167,221.54017605,203.65,203.64,0.03]
[1757255560355,195.54017605,203.65,203.64,0.03]
[1757255563169,63.24017605,203.65,203.64,0.03]
[1757255564165,25.70017605,203.65,203.64,0.03]
[1757255564362,39.59559401,203.61,203.6,0.03]
[1757255564568,81.69394712,203.61,203.6,0.03]
[1757255564872,82.36394712,203.61,203.59,1e-08]
[1757255565049,39.59559401,203.58,203.57,1e-08]
[1757255565367,81.69394712,203.58,203.57,1e-08]
[1757255566370,86.60602099,203.58,203.57,1e-08]
[1757255566563,87.27602099,203.58,203.57,1e-08]
[1757255566755,86.60602099,203.58,203.57,1e-08]
[1757255567163,87.27602099,203.58,203.57,1e-08]
[1757255567649,86.60602099,203.58,203.57,1e-08]
[1757255568368,84.9687694,203.58,203.57,1e-08]
[1757255568775,85.6387694,203.58,203.57,1e-08]
[1757255569663,84.9687694,203.58,203.57,1e-08]
[1757255570260,86.93538608,203.58,203.57,1e-08]
[1757255571487,86.95538608,203.58,203.57,1e-08]
[1757255571772,46.47428456,203.58,203.57,0.71000001]
[1757255571964,86.95538608,203.58,203.57,0.71000001]
[1757255575154,86.95538608,203.58,203.57,1e-08]
[1757255576174,39.59559401,203.55,203.54,0.03]
[1757255576364,80.07669553,203.55,203.54,0.03]
[1757255576674,13.59559401,203.54,203.52,0.03]
[1757255576983,54.07669553,203.53,203.52,0.03]
[1757255577557,51.15559401,203.53,203.52,0.03]
[1757255577758,54.07669553,203.53,203.52,0.03]
[1757255577960,18.5088746,203.53,203.52,0.03]
[1757255578180,56.0688746,203.53,203.52,0.74]
[1757255582469,20.4753946,203.53,203.52,0.74]
[1757255582674,56.0688746,203.53,203.52,0.74]
[1757255582871,1.96652,203.54,203.52,0.74]
[1757255583076,44.43961069,203.54,203.52,0.74]
[1757255583395,4.91309069,203.54,203.52,0.74]
[1757255583571,18.5086847,203.54,203.52,0.74]
[1757255583891,9.92698257,203.56,203.52,0.74]
[1757255584083,13.59559401,203.56,203.52,0.74]
[1757255585974,4.91279783,203.55,203.52,0.74]
[1757255586507,4.91279783,203.55,203.52,0.03]
[1757255586680,4.91279783,203.55,203.53,0.66]
[1757255586873,17.21669553,203.54,203.52,0.03]
[1757255587097,16.51669553,203.53,203.52,0.03]
[1757255587485,13.59559401,203.53,203.52,0.03]
[1757255587891,19.2088746,203.53,203.52,0.03]
[1757255588089,18.5088746,203.53,203.52,0.03]
[1757255590883,18.5088746,203.53,203.52,0.69]
[1757255592299,18.5088746,203.53,203.52,0.03]
[1757255592606,19.2088746,203.53,203.52,0.03]
[1757255592902,18.5088746,203.53,203.52,0.03]
[1757255594101,18.5088746,203.53,203.52,0.69]
[1757255594402,18.5088746,203.53,203.52,0.03]
[1757255594816,18.5088746,203.53,203.52,0.69]
[1757255595287,4.91328059,203.53,203.52,0.69]
[1757255597704,18.50864668,203.54,203.52,0.69]
[1757255598090,18.50864668,203.54,203.53,0.66]
[1757255598405,18.50864668,203.54,203.52,0.03]
[1757255598588,18.50864668,203.54,203.52,0.69]
[1757255600896,18.50864668,203.54,203.53,0.66]
[1757255602405,2.02632666,203.56,203.53,0.66]
[1757255602604,0.06,203.56,203.53,0.66]
[1757255604487,0.06,203.56,203.53,5.57327794]
[1757255604688,0.06,203.56,203.54,0.66]
[1757255605004,0.06,203.56,203.55,1.22781972]
[1757255605210,0.03176238,203.56,203.55,27.22781972]
[1757255605396,0.03176238,203.56,203.55,27.88781972]
[1757255605600,0.03176238,203.56,203.55,32.79869486]
[1757255605811,0.03176238,203.56,203.55,31.57087514]
[1757255606306,0.03176238,203.56,203.55,36.48367297]
[1757255607796,0.03176238,203.56,203.55,74.08367297]
[1757255608912,0.03176238,203.56,203.55,36.48367297]
[1757255609111,0.03176238,203.56,203.55,74.08367297]
[1757255610709,0.03176238,203.56,203.55,5.57087514]
[1757255611011,0.03176238,203.56,203.53,0.66]
[1757255611219,0.03176238,203.56,203.53,38.28]
[1757255612108,0.03176238,203.56,203.52,0.03]
[1757255612300,0.7,203.55,203.52,0.03]
[1757255613604,0.7,203.54,203.52,0.03]
[1757255614023,0.7,203.53,203.52,0.03]
[1757255614821,0.03176238,203.56,203.52,0.03]
[1757255615008,0.03176238,203.56,203.53,0.69]
[1757255615210,0.03176238,203.56,203.52,0.03]
[1757255615211,0.03176238,203.56,203.54,0.69]
[1757255615605,0.03176238,203.56,203.52,0.03]
[1757255615818,0.03176238,203.56,203.53,0.69]
[1757255616022,0.03176238,203.56,203.54,38.33]
[1757255616331,0.03176238,203.56,203.55,0.69]
[1757255616706,0.03176238,203.56,203.54,37.64]
[1757255616907,0.03176238,203.56,203.54,38.33]
[1757255617735,0.03176238,203.56,203.54,37.64]
[1757255618511,0.03176238,203.56,203.54,38.33]
[1757255619322,0.03176238,203.56,203.54,37.64]
[1757255623117,0.03176238,203.56,203.54,38.33]
[1757255623714,0.03176238,203.56,203.55,0.69]
[1757255624618,0.03176238,203.56,203.55,5.60279783]
[1757255624931,0.03176238,203.56,203.55,0.69]
[1757255626732,0.03176238,203.56,203.55,5.60279783]
[1757255629607,0.03176238,203.56,203.55,0.69]
[1757255629811,0.03176238,203.56,203.54,37.64]
[1757255630425,0.03176238,203.56,203.55,0.69]
[1757255632633,0.03176238,203.56,203.55,5.60279783]
[1757255635740,0.03176238,203.56,203.55,0.69]
[1757255636626,0.03176238,203.56,203.54,37.64]
[1757255636827,0.03176238,203.56,203.54,38.33]
[1757255637339,0.03176238,203.56,203.54,43.24302446]
[1757255639149,0.03176238,203.56,203.54,38.33]
[1757255639542,0.03176238,203.56,203.54,43.24297394]
[1757255640334,0.03176238,203.56,203.55,0.69]
[1757255641022,0.03176238,203.56,203.55,5.60279783]
[1757255641952,0.06,203.58,203.57,26.0]
[1757255642142,0.06,203.59,203.57,26.0]
[1757255642450,0.06,203.59,203.58,0.69]
[1757255643127,0.06,203.61,203.58,5.60207387]
[1757255643337,0.06,203.61,203.59,38.27]
[1757255643529,0.06,203.66,203.59,38.27]
[1757255643744,0.06,203.66,203.62,26.0]
[1757255643934,0.06,203.66,203.63,37.58]
[1757255644141,0.06,203.66,203.63,38.27]
[1757255644350,0.06,203.66,203.64,0.69]
[1757255644651,0.06,203.66,203.65,37.6]
[1757255644832,0.06,203.66,203.65,38.27]
[1757255645558,0.06,203.66,203.65,43.18038546]
[1757255645754,0.06,203.66,203.65,38.27]
[1757255646054,0.06,203.66,203.65,37.6]
[1757255647163,0.06,203.66,203.65,43.18038546]
[1757255648633,0.06,203.66,203.65,37.6]